fUSD/lending_fUSD_20251222
["ID","MTS","AMOUNT","RATE_DAILY","PERIOD"]
[399470297,1766393439942,-1000.0,0.00014191,2]
[399470298,1766393439954,-1000.0,0.00014191,2]
[399470299,1766393439967,-1000.0,0.00014191,2]
[399470300,1766393439979,-1000.0,0.00014191,2]
[399470301,1766393439991,-1000.0,0.00014191,2]
[399470302,1766393440004,-1000.0,0.00014191,2]
[399470303,1766393440016,-550.36391425,0.00014191,2]
[399470304,1766393440028,-1000.0,0.00014191,2]
[399470305,1766393440041,-537.36765375,0.00014191,2]
[399470306,1766393440053,-535.43855747,0.00014191,2]
[399470308,1766393440066,-1000.0,0.00014191,2]
[399470309,1766393440079,-1000.0,0.00014191,2]
[399470310,1766393440094,-1000.0,0.00014191,2]
[399470311,1766393440107,-453.73344194,0.00014191,2]
[399470312,1766393440120,-866.5623891,0.00014191,2]
[399470313,1766393440133,-1000.0,0.00014191,2]
[399470314,1766393440145,-1144.6648404,0.00014191,2]
[399470315,1766393440157,-484.24574485,0.00014191,2]
[399470316,1766393440170,-235.68882783,0.00014191,2]
[399470317,1766393440183,-1000.0,0.00014191,2]
[399470318,1766393440194,-1000.0,0.00014191,2]
[399470319,1766393440207,-1000.0,0.00014191,2]
[399470320,1766393440221,-1000.0,0.00014191,2]
[399470321,1766393440235,-1000.0,0.00014191,2]
[399470322,1766393440247,-1000.0,0.00014191,2]
[399470323,1766393440259,-1000.0,0.00014191,2]
[399470324,1766393440272,-1000.0,0.00014191,2]
[399470325,1766393440285,-804.17773207,0.00014191,2]
[399470326,1766393440298,-1000.0,0.00014191,2]
[399470327,1766393440311,-1000.0,0.00014191,2]
[399470328,1766393440323,-1000.0,0.00014191,2]
[399470329,1766393440336,-2295.89,0.00014191,2]
[399470330,1766393440351,-300.89,0.000142,2]
[399470331,1766393440364,-200.0,0.00014317,2]
[399470332,1766393440376,-1000.0,0.00014329,2]
[399470333,1766393440388,-166.66,0.00014358,2]
[399470334,1766393440401,-736.0,0.00014442,2]
[399470335,1766393440413,-199.02076006,0.00014455,3]
[399470336,1766393440425,-2295.89,0.00014465,2]
[399470337,1766393440437,-3301.98750385,0.0001451,2]
[399470338,1766393440450,-166.66,0.00014578,2]
[399470339,1766393440462,-823.0,0.00014595,2]
[399470340,1766393440474,-287.0,0.00014595,2]
[399470341,1766393440486,-14016.84795811,0.00014608,2]
[399470342,1766393440499,-3292.0,0.0001464,2]
[399470343,1766393440510,-151.0,0.00014697,2]
[399470344,1766393440523,-31885.63625409,0.00014697,2]
[399470345,1766393440535,-250.0,0.00014701,2]
[399470346,1766393440548,-1152.24771279,0.00014739,2]
[399470347,1766393440561,-1500.0,0.00014739,2]
[399470348,1766393440572,-500.0,0.00014739,2]
[399470349,1766393440584,-500.0,0.00014739,2]
[399470350,1766393440597,-1500.0,0.00014739,2]
[399470351,1766393440608,-1500.0,0.00014739,2]
[399470352,1766393440620,-1500.0,0.00014739,2]
[399470353,1766393440632,-1500.0,0.00014739,2]
[399470354,1766393440644,-1500.0,0.00014739,2]
[399470355,1766393440656,-659.366475,0.00014739,2]
[399470356,1766393440668,-437.07935653,0.00014739,2]
[399470357,1766393440679,-1500.0,0.00014739,2]
[399470358,1766393440691,-1500.0,0.00014739,2]
[399470359,1766393440703,-1500.0,0.00014739,2]
[399470360,1766393440715,-1500.0,0.00014739,2]
[399470361,1766393440727,-1500.0,0.00014739,2]
[399470362,1766393440739,-1504.58016272,0.00014739,2]
[399470363,1766393440752,-500.0,0.00014739,2]
[399470364,1766393440764,-1500.0,0.00014739,2]
[399470365,1766393440776,-1500.0,0.00014739,2]
[399470366,1766393440788,-1500.0,0.00014739,2]
[399470367,1766393440800,-1500.0,0.00014739,2]
[399470368,1766393440811,-2295.89,0.00014739,2]
[399470369,1766393440823,-857.63805121,0.00014776,2]
[399470370,1766393440834,-166.66,0.00014798,2]
[399470371,1766393440848,-300.89,0.00014846,2]
[399470372,1766393440860,-500.0,0.00014871,2]
[399470373,1766393440872,-226.5471914,0.000149,2]
[399470374,1766393440883,-151.0,0.00014942,2]
[399470375,1766393440895,-151.0,0.00014942,2]
[399470376,1766393440907,-156.587,0.00014942,2]
[399470377,1766393440918,-162.380719,0.00014942,2]
[399470378,1766393440930,-153.6660154,0.00014942,2]
[399470379,1766393440942,-200.0,0.00014942,2]
[399470380,1766393440953,-500.0,0.00014942,2]
[399470381,1766393440966,-207.4,0.00014942,2]
[399470382,1766393440977,-500.0,0.00014942,2]
[399470383,1766393440990,-215.0738,0.00014942,2]
[399470384,1766393441002,-352.57653345,0.00014942,2]
[399470385,1766393441013,-223.0315306,0.00014942,2]
[399470386,1766393441025,-231.28369723,0.00014942,2]
[399470387,1766393441037,-239.84119403,0.00014942,2]
[399470388,1766393441049,-248.71531821,0.00014942,2]
[399470389,1766393441061,-257.91778498,0.00014942,2]
[399470390,1766393441073,-2295.89,0.00015013,2]
[399470391,1766393441085,-8337.0,0.00015027,2]
[399470392,1766393441098,-151.0,0.00015144,2]
[399470393,1766393441109,-151.0,0.00015144,2]
[399470394,1766393441121,-151.0,0.0001515,2]
[399470395,1766393441132,-14016.84795811,0.00015181,2]
[399470396,1766393441143,-500.0,0.00015247,2]
[399470397,1766393441155,-31885.63625409,0.00015248,2]
[399470398,1766393441166,-1437.14852253,0.00015287,2]
[399470399,1766393441178,-2000.0,0.00015287,2]
[399470400,1766393441189,-667.2591655,0.00015287,2]
[399470401,1766393441200,-1502.21103807,0.00015287,2]
[399470402,1766393441212,-2000.0,0.00015287,2]
[399470403,1766393441227,-659.1358272,0.00015287,2]
[399470404,1766393441240,-2000.0,0.00015287,2]
[399470405,1766393441252,-2000.0,0.00015287,2]
[399470406,1766393441263,-2000.0,0.00015287,2]
[399470407,1766393441275,-459.78950383,0.00015287,2]
[399470408,1766393441286,-2000.0,0.00015287,2]
[399470409,1766393441300,-1572.96293358,0.00015287,2]
[399470410,1766393441312,-2000.0,0.00015287,2]
[399470411,1766393441323,-1500.0,0.00015287,2]
[399470412,1766393441334,-1005.45508162,0.00015287,2]
[399470413,1766393441346,-2295.89,0.00015287,2]
[399470414,1766393441358,-155.74604872,0.00015288,2]
[399470415,1766393441370,-160.68439963,0.00015288,2]
[399470416,1766393441382,-158.67617392,0.00015288,2]
[399470417,1766393441394,-157.04290017,0.00015288,2]
[399470418,1766393441405,-157.86754475,0.00015288,2]
[399470419,1766393441416,-152.87156213,0.00015288,2]
[399470420,1766393441429,-156.34624358,0.00015288,2]
[399470421,1766393441440,-857.63805121,0.00015484,2]
[399470422,1766393441451,-300.89,0.00015491,2]
[399470423,1766393441463,-500.0,0.00015493,2]
[399470424,1766393441474,-2295.89,0.00015561,2]
[399470425,1766393441485,-153.202067,0.00015563,2]
[399470426,1766393441497,-255.307319,0.00015563,2]
[399470427,1766393441509,-151.0,0.00015652,2]
[399470428,1766393441520,-200.0,0.00015657,2]
[399470429,1766393441923,-14016.84795811,0.00015754,2]
[399470430,1766393441944,-496.69939015,0.00015789,2]
[399470431,1766393441954,-31885.63625409,0.00015799,2]
[399470432,1766393441963,-1252.0,0.00015817,2]
[399470433,1766393441972,-500.0,0.00015834,2]
[399470434,1766393441982,-344.92521507,0.00015834,2]
[399470435,1766393441991,-500.0,0.00015834,2]
[399470436,1766393442000,-2500.0,0.00015835,2]
[399470437,1766393442009,-2007.00799583,0.00015835,2]
[399470438,1766393442018,-2500.0,0.00015835,2]
[399470439,1766393442028,-1300.59467454,0.00015835,2]
[399470440,1766393442037,-2500.0,0.00015835,2]
[399470441,1766393442046,-2528.55690441,0.00015835,2]
[399470442,1766393442056,-2590.93800386,0.00015835,2]
[399470443,1766393442065,-2295.89,0.00015835,2]
[399470444,1766393442075,-1000.0,0.00015921,2]
[399470445,1766393442084,-3858.0,0.00015989,2]
[399470446,1766393442094,-774.62869,0.00016,2]
[399470447,1766393442103,-3858.0,0.00016033,2]
[399470448,1766393442113,-871.0,0.00016039,2]
[399470449,1766393442122,-3858.0,0.00016047,2]
[399470450,1766393442131,-3858.0,0.00016053,2]
[399470451,1766393442140,-3781.0,0.00016104,2]
[399470452,1766393442149,-2295.89,0.00016108,2]
[399470453,1766393442157,-300.89,0.00016137,2]
[399470454,1766393442166,-500.0,0.0001615,2]
[399470455,1766393442175,-500.0,0.0001615,2]
[399470456,1766393442184,-500.0,0.0001615,2]
[399470457,1766393442193,-211825.1878623,0.00016151,2]
[399470458,1766393442201,-151.0,0.00016151,2]
[399470459,1766393442211,-151.0,0.00016151,2]
[399470460,1766393442225,-152.942767,0.00016151,2]
[399470461,1766393442235,-151.0,0.00016151,2]
[399470462,1766393442243,-151.0,0.00016151,2]
[399470463,1766393442253,-269.2053132,0.00016151,2]
[399470464,1766393442262,-151.0,0.00016151,2]
[399470465,1766393442272,-221.325547,0.00016151,2]
[399470466,1766393442281,-152.325413,0.00016151,2]
[399470467,1766393442290,-9353.0151441,0.0001617,2]
[399470468,1766393442300,-3858.0,0.00016178,2]
[399470469,1766393442312,-384.88,0.00016182,2]
[399470470,1766393442323,-857.63805121,0.00016192,2]
[399470471,1766393442332,-1326.4,0.00016216,2]
[399470472,1766393442341,-3470.125,0.00016216,2]
[399470473,1766393442352,-1609.0,0.00016216,2]
[399470475,1766393442361,-614.537,0.00016216,2]
[399470477,1766393442370,-520.13,0.00016216,2]
[399470479,1766393442378,-1267.218,0.00016216,2]
[399470480,1766393442387,-6530.0,0.00016216,2]
[399470481,1766393442396,-564.0,0.00016216,2]
[399470482,1766393442407,-2429.0,0.00016216,2]
[399470483,1766393442416,-500.0,0.0001623,2]
[399470484,1766393442425,-3858.0,0.00016283,2]
[399470485,1766393442435,-151.0,0.00016311,2]
[399470486,1766393442445,-267.46074303,0.00016311,2]
[399470487,1766393442454,-14016.84795811,0.00016327,2]
[399470488,1766393442466,-3815.82573577,0.00016328,2]
[399470490,1766393442477,-31885.63625409,0.00016349,2]
[399470492,1766393442487,-3858.0,0.00016362,2]
[399470493,1766393442497,-3858.0,0.0001637,2]
[399470494,1766393442506,-3858.0,0.0001637,2]
[399470495,1766393442516,-2295.89,0.00016382,2]
[399470496,1766393442526,-1236.82314427,0.00016383,2]
[399470497,1766393442535,-853.92874992,0.00016383,2]
[399470498,1766393442544,-3858.0,0.00016388,2]
[399470499,1766393442554,-1959.0,0.000164,2]
[399470500,1766393442563,-3858.0,0.00016413,2]
[399470501,1766393442572,-500.0,0.00016438,2]
[399470502,1766393442581,-500.0,0.00016438,2]
[399470503,1766393442590,-500.0,0.00016438,2]
[399470504,1766393442602,-500.0,0.00016438,2]
[399470505,1766393442611,-500.0,0.00016438,2]
[399470506,1766393442620,-500.0,0.00016438,2]
[399470507,1766393442630,-500.0,0.00016438,2]
[399470508,1766393442640,-500.0,0.00016438,2]
[399470509,1766393442650,-500.0,0.00016438,2]
[399470510,1766393442659,-500.0,0.00016438,2]
[399470511,1766393442667,-500.0,0.00016438,2]
[399470512,1766393442676,-500.0,0.00016438,2]
[399470513,1766393442685,-500.0,0.00016438,2]
[399470514,1766393442695,-500.0,0.00016438,2]
[399470515,1766393442704,-500.0,0.00016438,2]
[399470516,1766393442713,-500.0,0.00016438,2]
[399470517,1766393442723,-500.0,0.00016438,2]
[399470518,1766393442732,-500.0,0.00016438,2]
[399470519,1766393442741,-500.0,0.00016438,2]
[399470520,1766393442751,-500.0,0.00016438,2]
[399470521,1766393442761,-500.0,0.00016438,2]
[399470522,1766393442770,-500.0,0.00016438,2]
[399470523,1766393442779,-500.0,0.00016438,2]
[399470524,1766393442788,-500.0,0.00016438,2]
[399470525,1766393442797,-500.0,0.00016438,2]
[399470526,1766393442806,-416.52349652,0.00016438,2]
[399470527,1766393442815,-500.0,0.00016438,2]
[399470528,1766393442824,-500.0,0.00016438,2]
[399470529,1766393442833,-500.0,0.00016438,2]
[399470530,1766393442842,-500.0,0.00016438,2]
[399470531,1766393442854,-500.0,0.00016438,2]
[399470532,1766393442863,-500.0,0.00016438,2]
[399470533,1766393442872,-500.0,0.00016438,2]
[399470534,1766393442881,-500.0,0.00016438,2]
[399470535,1766393442890,-243.494433,0.00016438,2]
[399470536,1766393442900,-151.0,0.00016438,2]
[399470537,1766393442909,-745.843,0.00016442,2]
[399470538,1766393442919,-157.485,0.00016442,2]
[399470539,1766393442928,-3858.0,0.0001646,2]
[399470540,1766393442937,-500.0,0.00016473,2]
[399470541,1766393442947,-500.0,0.00016473,2]
[399470542,1766393442957,-581.27415104,0.00016473,2]
[399470543,1766393442966,-500.0,0.00016473,2]
[399470544,1766393442975,-500.71610448,0.00016473,2]
[399470546,1766393442984,-500.0,0.00016473,2]
[399470547,1766393442993,-500.0,0.00016473,2]
[399470549,1766393443003,-500.0,0.00016473,2]
[399470551,1766393443012,-500.0,0.00016473,2]
[399470553,1766393443022,-500.0,0.00016473,2]
[399470555,1766393443030,-500.0,0.00016473,2]
[399470557,1766393443040,-500.0,0.00016473,2]
[399470559,1766393443049,-500.0,0.00016473,2]
[399470561,1766393443058,-257.18076506,0.00016473,2]
[399470563,1766393443067,-500.47037435,0.00016473,2]
[399470565,1766393443076,-500.0,0.00016473,2]
[399470567,1766393443086,-566.05199029,0.00016473,2]
[399470569,1766393443095,-500.69670875,0.00016473,2]
[399470572,1766393443105,-500.0,0.00016473,2]
[399470573,1766393443114,-500.19873097,0.00016473,2]
[399470575,1766393443123,-500.0,0.00016473,2]
[399470577,1766393443133,-356.16077878,0.00016473,2]
[399470579,1766393443142,-500.31559723,0.00016473,2]
[399470581,1766393443151,-160.22953204,0.00016473,2]
[399470583,1766393443160,-500.23816043,0.00016473,2]
[399470585,1766393443169,-500.0,0.00016473,2]
[399470587,1766393443179,-160.22953259,0.00016473,2]
[399470589,1766393443189,-500.0,0.00016473,2]
[399470592,1766393443198,-500.0,0.00016473,2]
[399470596,1766393443207,-160.23033873,0.00016473,2]
[399470600,1766393443220,-500.0,0.00016473,2]
[399470604,1766393443229,-500.0,0.00016473,2]
[399470608,1766393443238,-500.0,0.00016473,2]
[399470612,1766393443247,-303.36115033,0.00016473,2]
[399470615,1766393443257,-151.0,0.00016473,2]
[399470617,1766393443266,-3858.0,0.00016496,2]
[399470619,1766393443276,-3858.0,0.00016506,2]
[399470621,1766393443286,-3858.0,0.00016592,2]
[399470623,1766393443297,-3858.0,0.00016634,2]
[399470625,1766393443306,-2295.89,0.00016656,2]
[399470627,1766393443316,-3018.19191469,0.0001666,2]
[399470629,1766393443326,-500.0,0.00016676,2]
[399470631,1766393443335,-500.0,0.00016676,2]
[399470633,1766393443345,-151.0,0.00016677,2]
[399470635,1766393443354,-500.0,0.00016699,2]
[399470637,1766393443363,-150.0,0.00016699,2]
[399470639,1766393443372,-500.0,0.00016699,2]
[399470641,1766393443381,-487.0,0.00016699,2]
[399470643,1766393443391,-500.0,0.00016699,2]
[399470645,1766393443401,-500.0,0.00016699,2]
[399470647,1766393443411,-164.38,0.00016712,2]
[399470649,1766393443419,-500.0,0.00016726,2]
[399470651,1766393443428,-150.0,0.00016726,2]
[399470653,1766393443437,-500.0,0.00016726,2]
[399470655,1766393443446,-487.0,0.00016726,2]
[399470657,1766393443456,-500.0,0.00016726,2]
[399470659,1766393443465,-500.0,0.00016726,2]
[399470661,1766393443474,-500.0,0.00016754,2]
[399470663,1766393443484,-150.0,0.00016754,2]
[399470665,1766393443493,-500.0,0.00016754,2]
[399470667,1766393443503,-487.0,0.00016754,2]
[399470669,1766393443512,-500.0,0.00016754,2]
[399470671,1766393443522,-300.0,0.00016754,2]
[399470673,1766393443531,-500.0,0.00016781,2]
[399470675,1766393443541,-220.7861783,0.00016781,2]
[399470677,1766393443550,-500.0,0.00016781,2]
[399470679,1766393443559,-487.0,0.00016781,2]
[399470681,1766393443569,-500.0,0.00016781,2]
[399470683,1766393443578,-300.89,0.00016782,2]
[399470685,1766393443587,-1342.15424464,0.000168,2]
[399470687,1766393443596,-1000.0,0.000168,2]
[399470689,1766393443606,-500.0,0.00016809,2]
[399470691,1766393443615,-500.0,0.00016809,2]
[399470693,1766393443624,-487.0,0.00016809,2]
[399470695,1766393443634,-463.82750768,0.00016809,2]
[399470697,1766393443643,-1342.15424462,0.00016817,2]
[399470699,1766393443652,-7000.0,0.0001683,2]
[399470701,1766393443661,-1342.15424462,0.00016833,2]
[399470703,1766393443671,-500.0,0.00016836,2]
[399470705,1766393443680,-500.0,0.00016836,2]
[399470707,1766393443690,-487.0,0.00016836,2]
[399470709,1766393443699,-1342.15424462,0.0001685,2]
[399470711,1766393443708,-200.0,0.00016863,2]
[399470713,1766393443717,-518.0,0.00016863,2]
[399470715,1766393443727,-505.01496115,0.00016863,2]
[399470717,1766393443736,-487.0,0.00016863,2]
[399470719,1766393443745,-200.0,0.00016864,2]
[399470721,1766393443755,-200.0,0.00016864,2]
[399470723,1766393443763,-200.0,0.00016864,2]
[399470725,1766393443773,-200.0,0.00016864,2]
[399470727,1766393443782,-224.06009191,0.00016866,2]
[399470729,1766393443791,-1342.15424462,0.00016867,2]
[399470731,1766393443800,-151.04254112,0.00016873,2]
[399470733,1766393443810,-271.60469743,0.00016873,2]
[399470735,1766393443818,-1200.78359608,0.00016883,2]
[399470737,1766393443836,-141.37064854,0.00016883,2]
[399470739,1766393443847,-487.0,0.00016891,2]
[399470742,1766393443856,-150.0,0.00016897,2]
[399470744,1766393443865,-550.0,0.00016899,2]
[399470746,1766393443875,-151.0,0.000169,2]
[399470747,1766393443885,-3005.54580294,0.000169,2]
[399470750,1766393443897,-6994.45419706,0.000169,2]
[399470752,1766393443906,-1342.15424462,0.000169,2]
[399470754,1766393443915,-1220.80744856,0.000169,2]
[399470756,1766393443924,-857.63805121,0.000169,2]
[399470758,1766393443933,-14016.84795811,0.000169,2]
[399470760,1766393443943,-922.09583713,0.000169,2]
[399470762,1766393443952,-31885.63625409,0.000169,2]
[399470764,1766393443962,-918.9,0.00016913,2]
[399470766,1766393443971,-487.0,0.00016918,2]
[399470767,1766393443981,-2295.89,0.0001693,2]
[399470768,1766393443990,-487.0,0.00016946,2]
[399470769,1766393444000,-7000.0,0.0001695,2]
[399470770,1766393444011,-487.0,0.00016973,2]
[399470771,1766393444021,-150.0,0.00016973,2]
[399470772,1766393444031,-150.0,0.00016973,2]
[399470773,1766393444040,-218.23,0.00016981,2]
[399470774,1766393444050,-304.0,0.00016986,2]
[399470775,1766393444059,-496.69939015,0.0001699,2]
[399470776,1766393444069,-496.69939015,0.0001699,2]
[399470777,1766393444078,-300.0,0.00016999,2]
[399470778,1766393444089,-300.0,0.00016999,2]
[399470779,1766393444099,-300.0,0.00016999,2]
[399470780,1766393444108,-300.0,0.00016999,2]
[399470781,1766393444117,-500.0,0.00016999,2]
[399470782,1766393444128,-500.0,0.00016999,2]
[399470783,1766393444137,-500.0,0.00016999,2]
[399470784,1766393444147,-500.0,0.00016999,2]
[399470785,1766393444157,-500.0,0.00016999,2]
[399470786,1766393444166,-666.0,0.00016999,2]
[399470787,1766393444176,-500.0,0.00016999,2]
[399470788,1766393444186,-500.0,0.00016999,2]
[399470789,1766393444195,-500.0,0.00016999,2]
[399470790,1766393444205,-500.0,0.00016999,2]
[399470791,1766393444215,-500.0,0.00016999,2]
[399470792,1766393444225,-300.0,0.00016999,2]
[399470793,1766393444236,-5460.5208555,0.00017,2]
[399470794,1766393444249,-880.07367556,0.00017,2]
[399470795,1766393444270,-39955.82228453,0.00017,2]
[399470796,1766393444285,-1817.01184,0.00017,2]
[399470797,1766393444296,-754.07848955,0.00017,2]
[399470798,1766393444307,-6109.99999996,0.00017,2]
[399470799,1766393444389,-2786.1885218,0.00017,2]
[399470800,1766393444400,-551.75042112,0.00017,2]
[399470801,1766393444412,-30981.75528214,0.00017,2]
[399470802,1766393444426,-1020.83919233,0.00017,2]
[399470803,1766393444437,-22462.11737721,0.00017,2]
[399470804,1766393444448,-6483.99739091,0.00017,2]
[399470805,1766393444460,-732.69582939,0.00017,2]
[399470806,1766393444480,-581.51212058,0.00017,2]
[399470807,1766393444491,-2932.34298008,0.00017,2]
[399470808,1766393444502,-1074.70349067,0.00017,2]
[399470809,1766393444518,-1170.3795753,0.00017,2]
[399470810,1766393444528,-623.85962557,0.00017,2]
[399470811,1766393444686,-150.0,0.00016216,2]
[399470812,1766393444695,-1650.0,0.00017,2]
[399470813,1766393444908,-1181.37233016,0.00017,2]
[399470814,1766393445495,-340.85780536,0.000169,2]
[399470815,1766393445505,-1559.03381085,0.00017,2]
[399470816,1766393445551,-255318.95703775,0.00017,2]
[399470817,1766393445560,-150.0,0.00017,2]
[399470818,1766393445569,-2697.06848353,0.00017,2]
[399470819,1766393445579,-500.0,0.00017,7]
[399470820,1766393445589,-34682.90552252,0.00017,2]
[399470821,1766393445764,-313.43480918,0.00017,2]
[399470822,1766393445819,-912.37869122,0.00017,2]
[399470825,1766393750431,162.76,7.655e-05,2]
[399470845,1766394631670,-162.76,9.569e-05,2]
[399470846,1766394631680,-250.0,0.00010526,2]
[399470847,1766394631690,-195.0,0.00011097,2]
[399470848,1766394631699,-195.0,0.00011304,2]
[399470849,1766394631708,-162.76,0.00011483,2]
[399470850,1766394631717,-500.0,0.00012603,2]
[399470851,1766394631727,-230.93,0.00013295,2]
[399470852,1766394631736,-162.76,0.00013397,2]
[399470853,1766394631745,-500.0,0.00013589,2]
[399470854,1766394631754,-151.03,0.00013596,2]
[399470855,1766394631763,-150.0,0.00013642,2]
[399470856,1766394631772,-500.0,0.00013643,2]
[399470857,1766394631782,-500.0,0.00013643,2]
[399470858,1766394631791,-500.0,0.00013643,2]
[399470859,1766394631800,-500.0,0.00013643,2]
[399470860,1766394631809,-500.0,0.00013643,2]
[399470861,1766394631819,-500.0,0.00013643,2]
[399470862,1766394631828,-480.93651792,0.00013643,2]
[399470863,1766394631837,-500.0,0.00013643,2]
[399470864,1766394631847,-216.339116,0.00013643,2]
[399470865,1766394631857,-500.0,0.00013643,2]
[399470866,1766394631867,-500.0,0.00013643,2]
[399470867,1766394631876,-500.0,0.00013643,2]
[399470868,1766394631885,-500.0,0.00013643,2]
[399470869,1766394631894,-500.0,0.00013643,2]
[399470870,1766394631903,-150.99,0.00014191,2]
[399470871,1766394631912,-9999.99,0.00014191,2]
[399470872,1766394631921,-1000.0,0.00014191,2]
[399470873,1766394631931,-1500.0,0.00014739,2]
[399470874,1766394631940,-255.0,0.0001476,2]
[399470875,1766394631949,-200.0,0.00014922,2]
[399470876,1766394631958,-207.4,0.00014922,2]
[399470877,1766394631968,-215.0738,0.00014922,2]
[399470878,1766394631977,-223.0315306,0.00014922,2]
[399470879,1766394631986,-231.28369723,0.00014922,2]
[399470880,1766394631996,-239.84119403,0.00014922,2]
[399470882,1766394632005,-248.71531821,0.00014922,2]
[399470884,1766394632015,-257.91778498,0.00014922,2]
[399470886,1766394632023,-171.52761027,0.00015211,2]
[399470888,1766394632034,-1390.7850892,0.00015287,2]
[399470890,1766394632043,-29926.52999473,0.00015307,2]
[399470946,1766394637836,-86057.94255607,0.00015307,2]
[399470994,1766394639724,-2740.57892087,0.00015307,2]
[399470995,1766394639737,-34967.05821453,0.00015307,2]
[399470996,1766394639986,-659.53743416,0.00015307,2]
[399471011,1766394642983,-334.70017341,0.00015307,2]
[399471012,1766394643037,-463408.13789886,0.00015307,2]
[399471013,1766394643101,-304.57654823,0.00015307,2]
[399471014,1766394643149,-1243.86456691,0.00015307,2]
[399471015,1766394643160,-259.084,0.00015307,2]
[399471018,1766394645755,-2127.26332505,0.00015307,2]
[399471019,1766394645917,-1340.77195366,0.00015307,2]
[399471020,1766394645969,-4999.9349905,0.00015307,2]
[399471021,1766394818285,163.0,0.00022,30]
[399471022,1766394819131,162.0,0.00022,30]
[399471023,1766394819202,162.0,0.00022,30]
[399471036,1766395831798,-300.0,0.00012989,2]
[399471037,1766395831807,-1200.0,0.00012989,2]
[399471038,1766395831816,-287.0,0.00012989,2]
[399471039,1766395831825,-41326.99785418,0.0001299,2]
[399471040,1766395831837,-500.0,0.00012999,2]
[399471041,1766395831849,-500.0,0.00012999,2]
[399471042,1766395831858,-4412.95179133,0.00013,2]
[399471043,1766395831868,-5328.93897617,0.0001305,2]
[399471044,1766395831877,-1000.0,0.000135,2]
[399471045,1766395831886,-150.0,0.00013641,2]
[399471046,1766395831895,-500.0,0.00013643,2]
[399471047,1766395831905,-500.0,0.00013643,2]
[399471048,1766395831915,-500.0,0.00013643,2]
[399471049,1766395831924,-500.0,0.00013643,2]
[399471050,1766395831933,-500.0,0.00013643,2]
[399471051,1766395831942,-500.0,0.00013643,2]
[399471052,1766395831952,-500.0,0.00013643,2]
[399471053,1766395831961,-500.0,0.00013643,2]
[399471054,1766395831971,-500.0,0.00013643,2]
[399471055,1766395831980,-500.0,0.00013643,2]
[399471056,1766395831988,-500.0,0.00013643,2]
[399471057,1766395831998,-222.91830755,0.00013643,2]
[399471058,1766395832008,-500.0,0.00013643,2]
[399471059,1766395832018,-500.0,0.00013643,2]
[399471060,1766395832029,-172.65369625,0.00013643,2]
[399471061,1766395832038,-163.76931911,0.00013643,2]
[399471062,1766395832047,-160.1870397,0.00013643,2]
[399471063,1766395832057,-165.58172588,0.00013643,2]
[399471064,1766395832066,-500.0,0.00013643,2]
[399471066,1766395832075,-500.0,0.00013643,2]
[399471067,1766395832084,-500.0,0.00013643,2]
[399471068,1766395832093,-500.51901365,0.00013643,2]
[399471069,1766395832102,-165.8458301,0.00013643,2]
[399471070,1766395832111,-500.0,0.00013643,2]
[399471071,1766395832120,-500.0,0.00013643,2]
[399471072,1766395832129,-500.0,0.00013643,2]
[399471073,1766395832138,-500.0,0.00013643,2]
[399471075,1766395832147,-500.0,0.00013643,2]
[399471077,1766395832156,-500.0,0.00013643,2]
[399471079,1766395832165,-500.0,0.00013643,2]